bitfinex/quotes_BTCUSD_20241111
["timestamp","ask_amount","ask_price","bid_price","bid_amount"]
[1731359960842,0.47852392,87679.0,87678.0,0.1]
[1731359960843,0.47044131,87679.0,87678.0,0.1]
[1731359961060,0.46146486,87679.0,87678.0,0.1]
[1731359961275,0.46146486,87679.0,87653.0,0.11922305]
[1731359961482,0.46146486,87679.0,87654.0,0.1]
[1731359961742,0.46146486,87679.0,87654.0,0.13508284]
[1731359961881,0.46146486,87679.0,87655.0,0.01849292]
[1731359962090,0.46146486,87679.0,87654.0,0.13508284]
[1731359962091,0.46146486,87679.0,87656.0,0.05357576]
[1731359962291,0.45861432,87679.0,87657.0,0.01849292]
[1731359962491,0.45861432,87679.0,87658.0,0.05585187]
[1731359962694,0.45861432,87679.0,87659.0,0.01849255]
[1731359962926,0.45861432,87679.0,87658.0,0.04235932]
[1731359962927,0.45861432,87679.0,87660.0,0.05585166]
[1731359963096,0.45861432,87679.0,87661.0,0.01849255]
[1731359963302,0.45861432,87679.0,87662.0,0.05357539]
[1731359963508,0.45861432,87679.0,87663.0,0.02076904]
[1731359963727,0.45861432,87679.0,87664.0,0.05357539]
[1731359963932,0.45861432,87679.0,87665.0,0.00711252]
[1731359964145,0.45861432,87679.0,87666.0,0.00711252]
[1731359964320,0.45861432,87679.0,87669.0,0.1]
[1731359964527,0.45861432,87679.0,87670.0,0.00938882]
[1731359964723,0.45861432,87679.0,87671.0,0.00711252]
[1731359964941,0.45861432,87679.0,87672.0,0.0022763]
[1731359965169,0.45861432,87679.0,87672.0,0.03508284]
[1731359965360,0.45861432,87679.0,87673.0,0.00227631]
[1731359965603,0.4566351,87679.0,87673.0,0.00227631]
[1731359965748,0.4566351,87679.0,87669.0,0.1]
[1731359965949,0.4566351,87679.0,87669.0,0.14535096]
[1731359966149,0.4566351,87679.0,87669.0,0.04535096]
[1731359966421,0.4566351,87679.0,87659.0,0.0017022]
[1731359966422,0.4566351,87679.0,87670.0,0.20879504]
[1731359966933,0.4566351,87679.0,87659.0,0.0017022]
[1731359967153,0.4566351,87679.0,87665.0,0.17143543]
[1731359967590,0.4566351,87679.0,87666.0,0.10711172]
[1731359967802,0.40765848,87678.0,87667.0,0.00711172]
[1731359968014,0.40765848,87678.0,87659.0,0.04733654]
[1731359968015,0.0463,87667.0,87659.0,0.04733654]
[1731359968190,0.0757,87664.0,87661.0,0.17143543]
[1731359968389,0.005,87662.0,87647.0,0.17143543]
[1731359968592,0.0463,87661.0,87647.0,0.16834543]
[1731359969773,0.005,87654.0,87627.0,0.17143543]
[1731359969976,0.005,87650.0,87639.0,0.17143543]
[1731359970176,0.007,87646.0,87627.0,0.17143543]
[1731359970477,0.075,87643.0,87627.0,0.17143543]
[1731359970693,0.16342305,87642.0,87628.0,0.00228023]
[1731359970900,0.16342305,87642.0,87636.0,0.04530161]
[1731359971116,0.005,87639.0,87610.0,0.0017034]
[1731359971347,0.002,87634.0,87619.0,0.0071174]
[1731359971583,0.005,87642.0,87618.0,0.17341638]
[1731359971584,0.16342305,87633.0,87627.0,0.17143543]
[1731359971794,0.16342305,87633.0,87618.0,0.17341638]
[1731359971795,0.16342305,87633.0,87628.0,0.00939822]
[1731359971947,0.16342305,87633.0,87629.0,0.0071174]
[1731359972155,0.16342305,87633.0,87630.0,0.00939779]
[1731359972354,0.16342305,87633.0,87631.0,0.0071174]
[1731359972537,0.16342305,87633.0,87632.0,0.0071174]
[1731359973003,0.005,87622.0,87618.0,0.00198095]
[1731359973154,0.005,87622.0,87610.0,0.0017034]
[1731359973155,0.11422305,87621.0,87619.0,0.17143543]
[1731359973516,0.1292,87620.0,87610.0,0.0017034]
[1731359973731,0.1292,87620.0,87610.0,0.04978223]
[1731359973732,0.11422305,87619.0,87610.0,0.04978223]
[1731359974129,0.11422305,87619.0,87610.0,0.00398535]
[1731359975047,0.1242,87620.0,87613.0,0.17143543]
[1731359975243,0.17143543,87619.0,87618.0,0.0040272]
[1731359975415,0.23342305,87620.0,87618.0,0.0040272]
[1731359975621,0.28565848,87619.0,87618.0,0.0040272]
[1731359975825,0.11422305,87619.0,87618.0,0.0039672]
[1731359976026,0.11422305,87619.0,87618.0,0.0039272]
[1731359976858,0.1192,87620.0,87618.0,0.0039672]
[1731359977084,0.1192,87620.0,87619.0,0.00228116]
[1731359977506,0.1192,87620.0,87618.0,0.00620863]
[1731359977896,0.1192,87620.0,87618.0,0.05329999]
[1731359978203,0.1192,87620.0,87618.0,0.00620863]
[1731359978363,0.1192,87620.0,87618.0,0.0039272]
[1731359979109,0.1192,87620.0,87618.0,0.0038272]
[1731359979312,0.28565848,87619.0,87618.0,0.0038272]
[1731359979464,0.10922305,87619.0,87618.0,0.0038272]
[1731359979673,0.0442,87620.0,87618.0,0.0038272]
[1731359979879,0.002,87655.0,87618.0,0.0038272]
[1731359979880,0.17143543,87649.0,87622.0,0.005]
[1731359980180,0.17143543,87649.0,87633.0,0.06204069]
[1731359980407,0.17143543,87649.0,87633.0,0.13783517]
[1731359980606,0.17143543,87649.0,87634.0,0.05767489]
[1731359980816,0.17143543,87640.0,87634.0,0.1]
[1731359981103,0.17143543,87639.0,87634.0,0.1]
[1731359981349,0.0476,87645.0,87618.0,0.0038272]
[1731359981543,0.0476,87645.0,87628.0,0.1]
[1731359982461,0.0476,87645.0,87629.0,0.00217958]
[1731359982878,0.0476,87645.0,87629.0,0.10217958]
[1731359983075,0.0476,87645.0,87629.0,0.1]
[1731359983706,0.0476,87645.0,87621.0,0.17143543]
[1731359983707,0.0476,87645.0,87630.0,0.17143543]
[1731359983919,0.0476,87645.0,87639.0,0.17143543]
[1731359984124,0.0476,87645.0,87631.0,0.21422305]
[1731359984712,0.17143543,87659.0,87641.0,0.1]
[1731359984885,0.16984134,87650.0,87641.0,0.1]
[1731359985038,0.17143543,87659.0,87641.0,0.1]
[1731359985224,0.048,87665.0,87642.0,0.28565848]
[1731359985429,0.17143543,87658.0,87643.0,0.1]
[1731359985630,0.048,87665.0,87643.0,0.24642489]
[1731359985879,0.17143543,87658.0,87644.0,0.03220184]
[1731359986078,0.17143543,87658.0,87643.0,0.21422305]
[1731359986289,0.048,87665.0,87645.0,0.1]
[1731359988104,0.048,87665.0,87645.0,0.14563313]
[1731359988883,0.17143543,87657.0,87645.0,0.14563313]
[1731359989170,0.048,87665.0,87651.0,0.1]
[1731359989286,0.17143543,87663.0,87651.0,0.1]
[1731359989528,0.048,87665.0,87651.0,0.1]
[1731359989529,0.058,87665.0,87655.0,0.17143543]
[1731359989728,0.0588515,87665.0,87656.0,0.1]
[1731359990179,0.0588515,87665.0,87658.0,0.1]
[1731359990380,0.0108515,87665.0,87660.0,0.1]
[1731359990605,0.0108515,87665.0,87661.0,0.00217704]
[1731359990817,0.0108515,87665.0,87660.0,0.1]
[1731359991195,0.0108515,87665.0,87662.0,0.1]
[1731359991411,0.0108515,87665.0,87660.0,0.1]
[1731359991412,0.0108515,87665.0,87663.0,0.00217719]
[1731359991624,0.0108515,87665.0,87660.0,0.1]
[1731359992320,0.0108515,87665.0,87656.0,0.04513284]
[1731359992714,0.0108515,87665.0,87648.0,0.1]
[1731359992842,0.00463809,87665.0,87648.0,0.1]
[1731359993249,0.00463809,87665.0,87648.0,0.14561376]
[1731359993494,0.00463809,87665.0,87650.0,0.1]
[1731359993806,0.17143543,87664.0,87650.0,0.1]
[1731359994247,0.00463809,87665.0,87650.0,0.1]
[1731359994479,0.17143543,87661.0,87650.0,0.1]
[1731359994594,0.00463809,87665.0,87647.0,0.04729237]
[1731359994796,0.00463809,87665.0,87649.0,0.09679769]
[1731359995002,0.17143543,87653.0,87649.0,0.09679769]
[1731359995203,0.16392305,87652.0,87634.0,0.04566463]
[1731359995403,0.0756,87651.0,87640.0,0.17143543]
[1731359995627,0.11422305,87650.0,87631.0,0.17143543]
[1731359995826,0.11422305,87650.0,87641.0,0.17143543]
[1731359996027,0.0756,87651.0,87642.0,0.00217944]
[1731359996282,0.0756,87651.0,87632.0,0.00217937]
[1731359996644,0.0756,87651.0,87641.0,0.17143543]
[1731359996849,0.0756,87651.0,87633.0,0.03073159]
[1731359997091,0.0706,87651.0,87640.0,0.17143543]
[1731359997250,0.17143543,87662.0,87641.0,0.24495464]
[1731359997456,0.00463809,87665.0,87643.0,0.1]
[1731359997654,0.00463809,87665.0,87645.0,0.1]
[1731359997655,0.17143543,87664.0,87645.0,0.1]
[1731359997889,0.17143543,87664.0,87646.0,0.11422305]
[1731359998233,0.17143543,87664.0,87647.0,0.1]
[1731359998403,0.17143543,87664.0,87649.0,0.1]
[1731359998621,0.17143543,87664.0,87650.0,0.1]
[1731359998823,0.10463809,87665.0,87650.0,0.1]
[1731359999579,0.10463809,87665.0,87658.0,0.17143543]
[1731359999802,0.10463809,87665.0,87659.0,0.21422305]
[1731360000011,0.10463809,87665.0,87659.0,0.24495464]
[1731360000536,0.17143543,87661.0,87659.0,0.13073159]
[1731360000884,0.10463809,87665.0,87661.0,0.1]
[1731360001124,0.10463809,87665.0,87663.0,0.1]
[1731360001331,0.00105817,87684.0,87667.0,0.005]
[1731360001332,0.17143543,87678.0,87667.0,0.005]
[1731360001541,0.17143543,87678.0,87665.0,0.1]
[1731360001542,0.17143543,87668.0,87665.0,0.1]
[1731360001827,0.45465589,87679.0,87666.0,0.03073159]
[1731360001965,0.17143543,87678.0,87659.0,0.04674237]
[1731360002184,0.45465589,87679.0,87653.0,0.17143543]
[1731360002185,0.45465589,87679.0,87662.0,0.17143543]
[1731360002391,0.45465589,87679.0,87663.0,0.00217658]
[1731360002680,0.0008514,87665.0,87664.0,0.11422305]
[1731360002830,0.0008514,87665.0,87664.0,0.24495464]
[1731360003063,0.0008514,87665.0,87664.0,0.24995464]
[1731360003286,0.45465589,87679.0,87664.0,0.24995464]
[1731360003287,0.17143543,87678.0,87671.0,0.005]
[1731360003487,0.45465589,87679.0,87675.0,0.005]
[1731360003735,5.21666867,87681.0,87680.0,0.005]
[1731360003954,4.48198035,87681.0,87680.0,2.66843207]
[1731360004158,4.31675759,87681.0,87680.0,2.55486005]
[1731360004328,4.27955481,87681.0,87680.0,2.66778581]
[1731360004541,4.27955481,87681.0,87680.0,2.60151938]
[1731360004803,4.27955481,87681.0,87680.0,1.64852838]
[1731360004946,4.27859377,87681.0,87680.0,1.7147874]
[1731360005283,4.25754764,87681.0,87680.0,1.00557846]
[1731360005456,3.93008547,87681.0,87680.0,0.95592179]
[1731360005638,3.93008547,87681.0,87680.0,0.98865701]
[1731360005839,3.92502114,87681.0,87680.0,0.98865701]
[1731360006066,3.91730862,87681.0,87680.0,0.98865701]
[1731360006240,3.64520925,87681.0,87680.0,0.98865701]
[1731360006440,3.15350374,87681.0,87680.0,0.32374579]
[1731360006626,3.15350374,87681.0,87680.0,0.16088238]
[1731360007044,3.15350374,87681.0,87680.0,0.04665933]
[1731360007418,3.15350374,87681.0,87662.0,0.17143543]
[1731360007624,3.15350374,87681.0,87671.0,0.17143543]
[1731360007829,3.15350374,87681.0,87663.0,0.11422305]
[1731360008489,0.17143543,87679.0,87664.0,0.1]
[1731360008693,0.17143543,87679.0,87666.0,0.1]
[1731360008870,0.17143543,87679.0,87667.0,0.11422305]
[1731360009214,0.17143543,87680.0,87668.0,0.1]
[1731360009496,0.17143543,87680.0,87658.0,0.04724662]
[1731360009497,0.0823,87678.0,87658.0,0.04724662]
[1731360009700,0.11422305,87677.0,87663.0,0.17143543]
[1731360010311,0.11422305,87677.0,87654.0,0.17143543]
[1731360010525,0.005,87671.0,87655.0,0.17143543]
[1731360010876,0.0823,87678.0,87656.0,0.00217776]
[1731360011090,0.0823,87678.0,87668.0,0.17143543]
[1731360011306,0.0823,87678.0,87657.0,0.03273522]
[1731360011524,0.0823,87678.0,87645.0,0.0017028]
[1731360011701,0.0823,87678.0,87658.0,0.17143543]
[1731360011929,0.0823,87678.0,87649.0,0.17143543]
[1731360011930,0.17143543,87671.0,87649.0,0.17143543]
[1731360012121,0.28565848,87670.0,87649.0,0.17143543]
[1731360012341,0.11422305,87670.0,87649.0,0.17143543]
[1731360012507,0.11422305,87670.0,87645.0,0.04681012]
[1731360012508,0.17143543,87669.0,87650.0,0.17143543]
[1731360012712,0.002,87663.0,87650.0,0.17143543]
[1731360012916,0.11622305,87668.0,87650.0,0.17143543]
[1731360013127,0.25573543,87659.0,87645.0,0.04681012]
[1731360013301,0.005,87654.0,87645.0,0.04681012]
[1731360013509,0.0823,87659.0,87645.0,0.04681012]
[1731360013510,0.045,87647.0,87645.0,0.04681012]
[1731360013717,0.045,87647.0,87646.0,0.17143543]
[1731360013914,0.045,87647.0,87646.0,0.03281781]
[1731360014270,0.045,87647.0,87646.0,0.00217976]
[1731360014499,0.16422305,87647.0,87645.0,0.04681012]
[1731360014922,0.005,87631.0,87625.0,0.17143543]
[1731360015092,0.002,87634.0,87625.0,0.17143543]
[1731360015093,0.005,87629.0,87625.0,0.17143543]
[1731360015315,0.045,87627.0,87625.0,0.17143543]
[1731360015479,0.11422305,87626.0,87624.0,0.12397853]
[1731360015691,0.005,87625.0,87624.0,0.12397853]
[1731360015918,0.12122305,87625.0,87624.0,0.04587853]
[1731360016484,0.005,87611.0,87609.0,0.0017022]
[1731360016689,0.005,87611.0,87610.0,0.00388548]
[1731360016690,0.11422305,87611.0,87610.0,0.00388548]
[1731360016948,0.11922305,87611.0,87610.0,0.04758194]
[1731360017371,0.005,87605.0,87571.0,0.0017]
[1731360017578,0.00222596,87599.0,87571.0,0.0017]
[1731360017788,0.0823,87603.0,87571.0,0.0017]
[1731360017789,0.00222596,87592.0,87571.0,0.0017]
[1731360018014,0.045,87597.0,87577.0,0.17143543]
[1731360018015,0.00222596,87589.0,87577.0,0.17143543]
[1731360018257,0.00222596,87586.0,87571.0,0.0017]
[1731360018431,0.045,87597.0,87571.0,0.04894301]
[1731360018432,0.00222596,87578.0,87571.0,0.04894301]
[1731360018631,0.11422305,87577.0,87572.0,0.00218493]
[1731360019066,0.11422305,87577.0,87571.0,0.04894301]
[1731360019067,0.0823,87576.0,87571.0,0.04894301]
[1731360019219,0.11422305,87575.0,87571.0,0.04894301]
[1731360019421,0.0823,87576.0,87572.0,0.00218542]
[1731360019896,0.0823,87576.0,87571.0,0.04894301]
[1731360019897,0.11422305,87575.0,87571.0,0.04894301]
[1731360020059,0.00222596,87572.0,87571.0,0.04894301]
[1731360020269,0.00222596,87570.0,87564.0,0.0017]
[1731360020446,0.00222596,87565.0,87564.0,0.0017]
[1731360020641,0.11644901,87565.0,87564.0,0.0017]
[1731360021266,0.11422305,87565.0,87564.0,0.0017]
[1731360021894,0.21422305,87565.0,87564.0,0.04776253]
[1731360022172,0.1,87565.0,87564.0,0.0017]
[1731360023414,0.1,87565.0,87564.0,0.0487159]
[1731360023628,0.1,87565.0,87564.0,0.0017]
[1731360024591,0.1,87565.0,87564.0,0.26189059]
[1731360024766,0.1,87565.0,87564.0,0.21422305]
[1731360025018,0.1,87565.0,87564.0,0.1]
[1731360025153,0.1,87565.0,87564.0,0.2148099]
[1731360025383,0.1,87565.0,87564.0,0.2168099]
[1731360025753,0.17143543,87583.0,87569.0,0.002]
[1731360025981,0.17143543,87572.0,87571.0,0.15766212]
[1731360026198,0.17143543,87583.0,87572.0,0.1]
[1731360026428,0.17143543,87583.0,87582.0,0.00058685]
[1731360026723,0.005,87631.0,87582.0,0.00058685]
[1731360026724,0.0777,87638.0,87600.0,0.06052448]
[1731360026921,0.0008518,87611.0,87600.0,0.27474753]
[1731360027130,0.16118187,87601.0,87600.0,0.27474753]
[1731360027349,0.0008518,87611.0,87603.0,0.05761015]
[1731360027549,0.0008518,87611.0,87607.0,0.002]
[1731360027752,0.0008518,87611.0,87610.0,0.00058685]
[1731360027994,0.0008518,87611.0,87610.0,0.2168099]
[1731360028172,0.0008518,87611.0,87610.0,0.2148099]
[1731360028428,0.0008518,87611.0,87610.0,0.2168099]
[1731360029790,0.0008518,87611.0,87610.0,0.31979943]
[1731360030039,0.0008518,87611.0,87610.0,0.4480499]
[1731360030213,0.0008518,87611.0,87610.0,0.2623969]
[1731360030546,0.0008518,87611.0,87610.0,0.26181005]
[1731360030721,0.0008518,87611.0,87610.0,0.2603969]
[1731360030955,0.0008518,87611.0,87610.0,0.25981005]
[1731360031158,0.0008518,87611.0,87610.0,0.045587]
[1731360031793,0.0008518,87611.0,87610.0,0.00309065]
[1731360032068,0.0008518,87611.0,87610.0,0.11790055]
[1731360032248,0.0008518,87611.0,87610.0,0.1166099]
[1731360032449,0.0008518,87611.0,87610.0,0.1602009]
[1731360032683,0.0008518,87611.0,87610.0,0.166045]
[1731360032885,0.0008518,87611.0,87610.0,0.266045]
[1731360033220,0.0008518,87611.0,87610.0,0.35003365]
[1731360033559,0.0777,87648.0,87628.0,0.00058685]
[1731360034127,0.0777,87648.0,87621.0,0.00058685]
[1731360034438,0.0777,87648.0,87622.0,0.1]
[1731360034653,0.0777,87648.0,87623.0,0.00345897]
[1731360034863,0.005,87645.0,87623.0,0.00345897]
[1731360035177,0.005,87645.0,87634.0,4e-05]
[1731360035178,0.00941315,87645.0,87634.0,4e-05]
[1731360035375,0.00941315,87645.0,87639.0,4e-05]
[1731360035605,0.00941315,87645.0,87617.0,0.00058685]
[1731360035905,0.00941315,87645.0,87640.0,4e-05]
[1731360036054,0.00941315,87645.0,87624.0,0.17143543]
[1731360036055,0.17143543,87641.0,87624.0,0.17143543]
[1731360036253,0.11422305,87644.0,87624.0,0.17143543]
[1731360036458,0.1186362,87644.0,87642.0,4e-05]
[1731360036716,0.1186362,87644.0,87625.0,0.00404925]
[1731360036909,0.1186362,87644.0,87643.0,4e-05]
[1731360037155,0.1186362,87644.0,87620.0,0.17143543]
[1731360037378,0.0777,87648.0,87632.0,0.1]
[1731360037556,0.17143543,87647.0,87632.0,0.1]
[1731360037767,0.28565848,87647.0,87633.0,0.00404719]
[1731360037892,0.00441315,87645.0,87633.0,0.00404719]
[1731360038097,0.11422305,87644.0,87633.0,0.00404719]
[1731360038308,0.11422305,87644.0,87621.0,0.1]
[1731360038909,0.11422305,87644.0,87622.0,0.00406155]
[1731360039784,0.17143543,87638.0,87622.0,0.00406155]
[1731360039988,0.11422305,87637.0,87622.0,0.00406155]
[1731360040378,0.11422305,87637.0,87620.0,0.04726135]
[1731360040580,0.17143543,87636.0,87623.0,0.00439111]
[1731360040725,0.17143543,87636.0,87619.0,0.1]
[1731360040726,0.17143543,87636.0,87621.0,0.0043959]
[1731360040926,0.17143543,87636.0,87624.0,0.00438633]
[1731360041132,0.17143543,87636.0,87622.0,0.00439111]
[1731360041406,0.17143543,87636.0,87625.0,0.00438394]
[1731360041701,0.17143543,87636.0,87626.0,0.00438154]
[1731360041862,0.17143543,87636.0,87619.0,0.04634898]
[1731360042063,0.17143543,87636.0,87617.0,0.1]
[1731360042262,0.11422305,87637.0,87620.0,0.0043959]
[1731360042466,0.17143543,87636.0,87618.0,0.00440068]
[1731360042643,0.17143543,87636.0,87617.0,0.1]
[1731360042644,0.17143543,87636.0,87621.0,0.0043959]
[1731360042844,0.17143543,87636.0,87617.0,0.1]
[1731360043077,0.17143543,87636.0,87618.0,0.00440068]
[1731360043906,0.000853,87645.0,87626.0,0.00058685]
[1731360044118,0.000853,87645.0,87644.0,0.00058685]
[1731360044666,0.000853,87645.0,87644.0,0.00490152]
[1731360044889,0.000853,87645.0,87634.0,0.00058685]
[1731360045100,0.000853,87645.0,87644.0,0.00386069]
[1731360045308,0.000853,87645.0,87636.0,0.00058685]
[1731360045485,0.000853,87645.0,87644.0,0.0038604]
[1731360045641,0.000853,87645.0,87642.0,0.00058685]
[1731360045856,0.000853,87645.0,87643.0,0.00386245]
[1731360046244,0.000853,87645.0,87644.0,0.00058685]
[1731360046468,0.0766,87666.0,87645.0,0.1]
[1731360046670,0.17143543,87671.0,87645.0,0.1]
[1731360046671,0.17143543,87662.0,87661.0,0.00058685]
[1731360046878,0.17143543,87662.0,87661.0,0.2148099]
[1731360047095,0.17143543,87662.0,87661.0,0.1]
[1731360047356,0.17143543,87671.0,87661.0,0.00379858]
[1731360047357,0.17028683,87671.0,87661.0,0.00379858]
[1731360047596,0.01,87675.0,87661.0,0.00379858]
[1731360047809,0.01,87675.0,87657.0,0.00058685]
[1731360048349,0.17143543,87669.0,87654.0,0.04644438]
[1731360048562,0.11422305,87674.0,87640.0,0.17143543]
[1731360048563,0.11422305,87668.0,87645.0,0.00058685]
[1731360048779,0.11422305,87668.0,87655.0,0.00384631]
[1731360048991,0.15237553,87666.0,87645.0,0.04730623]
[1731360049191,0.15237553,87666.0,87645.0,0.00058685]
[1731360049461,0.17143543,87657.0,87646.0,0.00417399]
[1731360049685,0.00441315,87648.0,87646.0,0.00417399]
[1731360049913,0.1186362,87647.0,87641.0,0.0473066]
[1731360050125,0.11422305,87647.0,87641.0,0.0473066]
[1731360050347,0.0762,87656.0,87626.0,0.17143543]
[1731360050348,0.0762,87656.0,87628.0,0.00058685]
[1731360050564,0.17143543,87654.0,87628.0,0.00058685]
[1731360050779,0.17584858,87645.0,87621.0,0.04514264]
[1731360051019,0.11422305,87644.0,87627.0,0.17143543]
[1731360051245,0.11422305,87644.0,87618.0,0.17143543]
[1731360051246,0.17143543,87643.0,87618.0,0.17143543]
[1731360051465,0.11422305,87642.0,87618.0,0.17143543]
[1731360052111,0.11422305,87642.0,87616.0,0.04655716]
[1731360052331,0.11422305,87642.0,87620.0,0.1]
[1731360052781,0.17143543,87643.0,87624.0,0.00058685]
[1731360052996,0.17143543,87643.0,87626.0,0.00058685]
[1731360053213,0.17143543,87643.0,87622.0,0.1]
[1731360053214,0.17143543,87643.0,87628.0,0.00058685]
[1731360053418,0.17143543,87653.0,87645.0,0.00058685]
[1731360054320,0.005,87671.0,87645.0,0.00058685]
[1731360054540,0.17143543,87657.0,87645.0,0.00058685]
[1731360054941,0.005,87671.0,87647.0,0.00058685]
[1731360055263,0.0773,87673.0,87647.0,0.00058685]
[1731360055484,0.0773,87673.0,87631.0,0.1]
[1731360055485,0.0773,87673.0,87657.0,0.00058685]
[1731360055694,0.16370567,87665.0,87657.0,0.00058685]
[1731360055927,0.16370567,87665.0,87658.0,0.0041441]
[1731360056108,0.16370567,87665.0,87657.0,0.00058685]
[1731360056347,0.0773,87673.0,87657.0,0.00058685]
[1731360056600,0.17143543,87669.0,87657.0,0.00058685]
[1731360056809,0.0773,87673.0,87657.0,0.00058685]
[1731360057025,0.17143543,87671.0,87657.0,0.00058685]
[1731360057234,0.17143543,87671.0,87658.0,0.00415249]
[1731360057652,0.17143543,87671.0,87657.0,0.00058685]
[1731360058096,0.17143543,87671.0,87658.0,0.00414771]
[1731360058492,0.0773,87673.0,87666.0,0.00058685]
[1731360058694,0.1,87678.0,87666.0,0.00058685]
[1731360058917,0.17143543,87668.0,87660.0,0.1]
[1731360059037,0.1,87678.0,87660.0,0.1]
[1731360059237,0.1,87678.0,87658.0,0.04614071]
[1731360059238,0.17143543,87661.0,87658.0,0.04614071]
[1731360059457,0.1,87678.0,87659.0,0.17143543]
[1731360059652,0.1,87678.0,87663.0,0.00058685]
[1731360059653,0.17143543,87671.0,87663.0,0.00058685]
[1731360059855,0.1,87678.0,87649.0,0.09558685]
[1731360060107,0.1,87678.0,87650.0,0.11422305]
[1731360060358,0.17143543,87671.0,87651.0,0.17143543]
[1731360060568,0.11422305,87670.0,87651.0,0.17143543]
[1731360060881,0.17143543,87669.0,87651.0,0.28565848]
[1731360061093,0.1,87678.0,87651.0,0.28565848]
[1731360061094,0.02231923,87677.0,87652.0,0.17143543]
[1731360061275,0.17143543,87668.0,87651.0,0.11422305]
[1731360061481,0.17132843,87668.0,87652.0,0.17143543]
[1731360061716,0.17132843,87668.0,87635.0,0.05759844]
[1731360061717,0.005,87647.0,87615.0,0.06600293]
[1731360061898,0.005,87650.0,87614.0,0.0495022]
[1731360061899,0.0773,87644.0,87637.0,0.17143543]
[1731360062106,0.11422305,87667.0,87623.0,0.17143543]
[1731360062107,0.0773,87660.0,87623.0,0.17143543]
[1731360062298,0.17143543,87654.0,87638.0,0.02863478]
[1731360062593,0.0773,87660.0,87623.0,0.17143543]
[1731360062594,0.0773,87660.0,87642.0,0.002]
[1731360062796,0.17143543,87653.0,87642.0,0.11422305]
[1731360063175,0.17143543,87653.0,87642.0,0.15997652]
[1731360063335,0.17143543,87653.0,87642.0,0.04575347]
[1731360063534,0.17143543,87653.0,87614.0,0.17143543]
[1731360063535,0.17143543,87644.0,87614.0,0.17143543]
[1731360063740,0.11422305,87644.0,87623.0,0.17143543]
[1731360063977,0.17143543,87643.0,87615.0,0.11622305]
[1731360064412,0.17143543,87643.0,87620.0,0.04559]
[1731360064814,0.17143543,87632.0,87620.0,0.04559]
[1731360065022,0.17143543,87643.0,87620.0,0.04559]
[1731360065023,0.0813,87642.0,87620.0,0.04559]
[1731360065231,0.17143543,87634.0,87614.0,0.04693256]
[1731360065430,0.28565848,87634.0,87614.0,0.04693256]
[1731360065600,0.28565848,87634.0,87610.0,0.0473008]
[1731360066025,0.28565848,87634.0,87611.0,0.00585556]
[1731360066183,0.17143543,87625.0,87611.0,0.00585556]
[1731360066420,0.28565848,87634.0,87611.0,0.10585556]
[1731360066622,0.11422305,87633.0,87610.0,0.09443219]
[1731360066834,0.17143543,87625.0,87612.0,0.00585077]
[1731360067216,0.17143543,87625.0,87610.0,0.09443219]
[1731360067367,0.11422305,87633.0,87610.0,0.09443219]
[1731360067587,0.005,87617.0,87610.0,0.04883719]
[1731360067751,0.11422305,87616.0,87610.0,0.04883719]
[1731360067955,0.11422305,87616.0,87611.0,0.00581479]
[1731360068162,0.11422305,87616.0,87610.0,0.04883719]
[1731360068387,0.0462,87626.0,87610.0,0.04883719]
[1731360068562,0.005,87635.0,87610.0,0.04883719]
[1731360068772,0.17143543,87625.0,87611.0,0.00591234]
[1731360068973,0.17143543,87625.0,87610.0,0.04883719]
[1731360069321,0.11422305,87624.0,87610.0,0.04883719]
[1731360070381,0.17143543,87618.0,87610.0,0.04883719]
[1731360070593,0.005,87620.0,87610.0,0.04883719]
[1731360070594,0.11422305,87617.0,87610.0,0.04883719]
[1731360071242,0.17143543,87634.0,87610.0,0.04883719]
[1731360071243,0.005,87646.0,87612.0,0.1]
[1731360071466,0.17143543,87625.0,87614.0,0.1]
[1731360071676,0.17143543,87634.0,87618.0,0.04982849]
[1731360071893,0.17143543,87624.0,87619.0,0.1058292]
[1731360072089,0.17143543,87634.0,87619.0,0.1058292]
[1731360072496,0.17143543,87632.0,87619.0,0.1058292]
[1731360072721,0.11422305,87631.0,87619.0,0.1058292]
[1731360072916,0.11422305,87631.0,87619.0,0.0058292]
[1731360073342,0.11422305,87631.0,87612.0,0.045597]
[1731360073550,0.11422305,87631.0,87611.0,0.1]
[1731360073749,0.11422305,87631.0,87613.0,0.0058519]
[1731360073962,0.11422305,87631.0,87612.0,0.00585669]
[1731360074159,0.11422305,87631.0,87614.0,0.00585965]
[1731360074459,1.11422305,87631.0,87613.0,0.10585014]
[1731360074621,1.11422305,87631.0,87615.0,0.00584057]
[1731360074839,1.11422305,87631.0,87614.0,0.00584536]
[1731360074998,1.11422305,87631.0,87613.0,0.1017048]
[1731360075193,1.11422305,87631.0,87615.0,0.00584057]
[1731360075458,1.11422305,87631.0,87614.0,0.00584536]
[1731360075613,1.11422305,87631.0,87613.0,0.0017048]
[1731360076045,0.17143543,87623.0,87613.0,0.0017048]
[1731360076256,1.0,87631.0,87618.0,0.17143543]
[1731360076452,1.0,87631.0,87613.0,0.0017048]
[1731360076453,0.17143543,87630.0,87614.0,0.00584289]
[1731360076663,0.17143543,87630.0,87613.0,0.0017048]
[1731360077009,0.17143543,87630.0,87614.0,0.00586364]
[1731360077360,0.16427249,87630.0,87614.0,0.00586364]
[1731360077537,0.16427249,87630.0,87613.0,0.0017048]
[1731360077778,0.16427249,87630.0,87615.0,0.00585895]
[1731360077974,0.16427249,87630.0,87614.0,0.00586373]
[1731360078186,0.16427249,87630.0,87613.0,0.0017048]
[1731360078397,1.0,87631.0,87619.0,0.1]
[1731360078598,0.37967915,87631.0,87627.0,0.002]
[1731360078796,0.37967915,87631.0,87628.0,0.02863478]
[1731360079232,0.37967915,87631.0,87629.0,0.00573123]
[1731360079697,0.17143543,87630.0,87629.0,0.00573123]
[1731360079913,0.02168695,87630.0,87619.0,0.04995216]
[1731360080090,0.02168695,87630.0,87615.0,0.04995216]
[1731360080226,0.02168695,87630.0,87620.0,0.00569782]
[1731360080422,0.02168695,87630.0,87611.0,0.04552314]
[1731360080423,0.22021173,87631.0,87627.0,0.1]
[1731360080685,0.005,87675.0,87629.0,0.1]
[1731360080883,0.17143543,87648.0,87635.0,0.05759844]
[1731360081099,0.17143543,87659.0,87636.0,0.1448452]
[1731360081472,0.17143543,87659.0,87636.0,0.20214731]
[1731360081644,0.17143543,87659.0,87638.0,0.1]
[1731360081846,0.17143543,87668.0,87641.0,0.1]
[1731360082258,0.17143543,87657.0,87642.0,0.00580051]
[1731360082419,0.17143543,87668.0,87643.0,0.1]